Cogmind - Beta 11.2 @@@ ROGUE MODE // 2023.01.04 @ 15:41:25 Player: KTG-V3 Result: Destroyed by as-13121 with Assembled Rifle Performance ------------- Evolutions (0) 0 Regions Visited (4) 800 Robots Destroyed (28) 140 Value Destroyed (425) 425 Prototype IDs (2) 40 Alien Tech Used (0) 0 Bonus (62) 62 TOTAL SCORE: 1467 Bonus ------- Follower Combat Kills 195 Friendly Fire -133 Cogmind --------- Core Integrity 0/250 Matter 231/300 Energy 89/100 System Corruption 0% Temperature Cool (25) Movement Treading (320) Ox2 Location -9/Mines Parts ------- > --- POWER (1) -------- (None) > --- PROPULSION (2) --- Light Treads > --- UTILITY (2) ------ High-capacity Storage Unit > --- WEAPON (2) ------- Beam Cannon > --- INVENTORY (20) --- Light Ion Engine Wheel Compact Wheel Huge Storage Unit High-capacity Matter Pod (200) Power Shielding Light Armor Plating Light Armor Plating Light Armor Plating Light Armor Plating Light Armor Plating Light Armor Plating Medium Laser Medium Laser Particle Gun Assault Rifle Light Assault Rifle Light Assault Rifle Rocket Launcher Peak State ------------ > --- POWER ------------ Light Nuclear Core > --- PROPULSION ------- Light Treads Light Treads > --- UTILITY ---------- Improved Heat Sink High-capacity Storage Unit > --- WEAPON ----------- Light Cannon Rocket Launcher > --- INVENTORY -------- Light Ion Engine Light Treads Wheel Compact Wheel Huge Storage Unit High-capacity Matter Pod Power Shielding Light Armor Plating Light Armor Plating Light Armor Plating Light Armor Plating Light Armor Plating Light Armor Plating Medium Laser Medium Laser Particle Gun Beam Cannon Assault Rifle Light Assault Rifle Light Assault Rifle [Rating: 14] Favorites ----------- Power Light Nuclear Core Engine Ion Engine Power Core Light Nuclear Core Propulsion Light Treads Treads Light Treads Wheel Compact Wheel Utility High-capacity Storage Unit Device Improved Heat Sink Storage High-capacity Storage Unit Processor Transport Network Coupler Protection Light Armor Plating Weapon Medium Laser Energy Gun Medium Laser Energy Cannon Beam Cannon Ballistic Gun Assault Rifle Ballistic Cannon Light Cannon Launcher Rocket Launcher Build | -11 -10 -10 -10 -9 ------- Run | Scr Mat Min Exi Min Slots Evolved . | . . . . . Power . | . . . . . Propulsion . | . . . . . Utility . | . . . . . Weapon . | . . . . . Parts Attached 26 | 7 16 . . 3 Power 4 | 1 3 . . . Engine 3 | 1 2 . . . Core 1 | . 1 . . . Reactor . | . . . . . Propulsion 6 | 2 3 . . 1 Treads 5 | 2 2 . . 1 Leg . | . . . . . Wheel 1 | . 1 . . . Hover . | . . . . . Flight . | . . . . . Utility 6 | 2 4 . . . Device 2 | 1 1 . . . Storage 2 | 1 1 . . . Processor 1 | . 1 . . . Hackware . | . . . . . Protection 1 | . 1 . . . Artifact . | . . . . . Weapon 10 | 2 6 . . 2 Energy Gun 4 | 1 3 . . . Energy Cannon 1 | . . . . 1 Ballistic Gun 3 | 1 2 . . . Ballistic Cannon 1 | . 1 . . . Launcher 1 | . . . . 1 Special Weapon . | . . . . . Impact Weapon . | . . . . . Slashing Weapon . | . . . . . Piercing Weapon . | . . . . . Special Melee Weapon . | . . . . . Unidentified Prototypes . | . . . . . Parts Lost 7 | . 2 . . 5 Power 1 | . . . . 1 Propulsion 3 | . 1 . . 2 Utility 2 | . 1 . . 1 Weapon 1 | . . . . 1 Highest Loss Streak 5 | . 1 . . 5 To Critical Strikes . | . . . . . Average Slot Usage (%) 99 | . 98 100 100 99 Engine 2 | . 7 . . . Core 11 | . 6 14 14 13 Treads 26 | . 23 28 28 27 Wheel 1 | . 4 . . . Device 12 | . 7 14 14 13 Storage 14 | . 14 14 14 14 Protection 1 | . 3 . . . Energy Gun 13 | . 13 14 14 13 Ballistic Gun 2 | . 8 . . . Ballistic Cannon 11 | . 6 14 14 13 Naked Turns . | . . . . . Heaviest Build 52 | 15 52 51 51 51 Greatest Support 40 | 40 40 40 40 40 Greatest Overweight (x) 3 | 1 3 1 1 1 Average Overweight (x) 1 | . 1 1 1 1 Largest Inventory Capacity 20 | 8 20 20 20 20 Average Capacity 18 | 7 16 20 20 20 Most Carried 20 | 6 14 20 20 20 Average Carried 16 | 4 10 17 20 19 Final Capacity 20 | 8 20 20 20 20 Final Carried 20 | 6 14 20 20 19 Class Distribution -------------------- 91% | Mutant 8% | Commander-Mutant Dominant Class ---------------- Mutant | -10/Materials Mutant | -10/Mines Mutant | -10/Exiles Mutant | -9/Mines Resources | -11 -10 -10 -10 -9 ----------- Run | Scr Mat Min Exi Min Matter Collected 809 | 312 350 84 . 63 Remotely 127 | 44 83 . . . Salvage Created 1072 | 138 602 151 . 181 Parts 46 | 7 26 5 . 8 Haulers Intercepted 2 | . 2 . . . Recyclers Shooed 1 | . 1 . . . Parts Field Recycled . | . . . . . Retrieved Matter . | . . . . . Parts Self-Destructed . | . . . . . Prevented . | . . . . . Kills | -11 -10 -10 -10 -9 ------- Run | Scr Mat Min Exi Min Combat Hostiles Destroyed 18 | . 8 . . 10 Guns 8 | . 8 . . . Cannons 2 | . . . . 2 AOE 8 | . . . . 8 Classes Destroyed 9 | 2 4 1 . 2 Worker 3 | . . 3 . . Builder 1 | . . . . 1 Tunneler 3 | 2 1 . . . Hauler 2 | . 2 . . . Recycler 5 | 1 2 1 . 1 Watcher 3 | . 3 . . . Swarmer 3 | . 3 . . . Grunt 8 | . 5 1 . 2 Assembled 8 | . . . . 8 Best Kill Streak 8 | 2 5 2 . 8 Combat Bots Only 8 | . 3 . . 8 Max Kills in Single Turn 5 | 1 1 1 . 5 Gunslinging . | . . . . . Exploded 5 | . . . . 5 Melee . | . . . . . Uniques/NPCs Destroyed . | . . . . . Combat | -11 -10 -10 -10 -9 -------- Run | Scr Mat Min Exi Min Damage Taken 1340 | . 493 64 . 783 Core 254 | . 66 35 . 153 Absorbed by Shields . | . . . . . Regen/Repaired (Parts) 99 | . 99 . . . Core Remaining (%) 100 | 100 . . . . Volleys Fired 120 | 14 67 16 . 23 Largest 2 | 2 2 1 . 2 Hottest 95 | 70 70 35 . 95 Shots Fired 212 | 28 126 16 . 42 Gun 161 | 28 119 . . 14 Cannon 47 | . 7 16 . 24 Launcher 4 | . . . . 4 Special . | . . . . . Kinetic 129 | 14 79 16 . 20 Thermal 79 | 14 47 . . 18 Explosive 4 | . . . . 4 Electromagnetic . | . . . . . Robot Hit Streak 11 | 4 11 6 . 7 Robot Miss Streak 6 | 4 6 1 . 4 Penetration Max . | . . . . . Secondary Targets . | . . . . . Shots Hit Robots 124 | 15 74 13 . 22 Core Hits 61 | 4 28 5 . 24 Critical Kills . | . . . . . Critical Parts Destroyed . | . . . . . Critical Strikes 5 | . 4 . . 1 Burn 4 | . 3 . . 1 Blast 1 | . 1 . . . Melee Attacks . | . . . . . Impact . | . . . . . Slashing . | . . . . . Piercing . | . . . . . Sneak Attacks . | . . . . . Combat Hostiles . | . . . . . Follow-up Attacks . | . . . . . Damage Inflicted 2276 | 188 935 244 . 909 Guns 1172 | 188 886 . . 98 Cannons 529 | . 49 244 . 236 Explosions 575 | . . . . 575 Melee . | . . . . . Ramming . | . . . . . Kinetic 1075 | 74 590 244 . 167 Thermal 626 | 114 345 . . 167 Explosive 575 | . . . . 575 Electromagnetic . | . . . . . Impact . | . . . . . Slashing . | . . . . . Piercing . | . . . . . Highest Corruption . | . . . . . Average Corruption . | . . . . . Corruption Purged . | . . . . . Corruption Blocked . | . . . . . Overload Shots . | . . . . . Overflow Damage 41 | . . 2 . 39 Projectiles 2 | . . 2 . . Explosions 39 | . . . . 39 Melee . | . . . . . Knockbacks 5 | . . 4 . 1 Impact . | . . . . . Kinetic 5 | . . 4 . 1 Secondary . | . . . . . Self-Inflicted Damage 6 | . . . . 6 Shots 1 | . . . . 1 Rammed . | . . . . . Targets Rammed . | . . . . . Kicked . | . . . . . Crushed . | . . . . . Highest Temperature 250 | 126 250 . . 25 Average Temperature 61 | 63 64 . . 8 Received Heat Transfer 239 | . 183 9 . 47 Effects 1 | . 1 . . . Interference 1 | . 1 . . . Siege Activations . | . . . . . Robots Corrupted . | . . . . . Combat Hostiles . | . . . . . Parts Fried . | . . . . . Impact Corruptions . | . . . . . Robots Melted . | . . . . . Combat Hostiles . | . . . . . Parts Melted 7 | . 4 . . 3 Heat Transferred 2109 | 333 1258 . . 518 Parts Sabotaged . | . . . . . Parts Stolen . | . . . . . Parts Stripped . | . . . . . Power Chain Reactions . | . . . . . Missiles Intercepted . | . . . . . Alert | -11 -10 -10 -10 -9 ------- Run | Scr Mat Min Exi Min Peak Influence 223 | 15 223 63 . 90 Initial 9 | . 9 . . . Average 28 | 7 58 6 . 35 Maximum Alert Level 1 | . 1 . . . Low Security (%) 99 | 100 96 100 . 100 Level 1 . | . 3 . . . Level 2 . | . . . . . Level 3 . | . . . . . Level 4 . | . . . . . Level 5 . | . . . . . High Security . | . . . . . Max Security . | . . . . . Squads Dispatched 1 | . 1 . . . Investigation 1 | . 1 . . . Extermination . | . . . . . Reinforcement . | . . . . . Assault . | . . . . . Garrison . | . . . . . Intercept . | . . . . . Searches Triggered . | . . . . . Construction Impeded . | . . . . . Haulers Reinforced . | . . . . . Active Scanning Responses . | . . . . . Cargo Convoy Interrupts . | . . . . . Stealth | -11 -10 -10 -10 -9 --------- Run | Scr Mat Min Exi Min Distress Signals 1 | . 1 . . . Communications Jammed . | . . . . . Distress Signals . | . . . . . Times Spotted 49 | . 21 4 . 24 Peak Tracking Total 16 | . 4 2 . 16 Tactical Retreats 2 | . 2 . . . Traps | -11 -10 -10 -10 -9 ------- Run | Scr Mat Min Exi Min Traps Triggered 2 | . 2 . . . Indirectly . | . . . . . Trap Hack Attempts . | . . . . . Triggered . | . . . . . Disarmed . | . . . . . Reprogrammed . | . . . . . Reused . | . . . . . Traps Extracted . | . . . . . Installed . | . . . . . Triggered 1 | . . . . 1 Machines | -11 -10 -10 -10 -9 ---------- Run | Scr Mat Min Exi Min Machines Disabled 3 | . 3 . . . Max in Single Turn 1 | . 1 . . . Machines Sabotaged . | . . . . . Garrisons Compromised . | . . . . . Overloaded Fab Kills . | . . . . . Hacking | -11 -10 -10 -10 -9 --------- Run | Scr Mat Min Exi Min Machines Accessed 10 | . 9 . 1 . Terminals 6 | . 6 . . . Fabricators . | . . . . . Repair Stations 1 | . 1 . . . Recycling Units 2 | . 2 . . . Scanalyzers . | . . . . . Garrison Access . | . . . . . Total Hacks 35 | . 30 . 5 . Successful 24 | . 19 . 5 . Failed 11 | . 11 . . . Catastrophic . | . . . . . Database Lockouts . | . . . . . Manual 11 | . 11 . . . Terminals 21 | . 21 . . . Fabricators . | . . . . . Repair Stations 4 | . 4 . . . Recycling Units 5 | . 5 . . . Scanalyzers . | . . . . . Garrison Access . | . . . . . Terminal Hacks 16 | . 11 . 5 . Record 5 | . . . 5 . Part Schematic 2 | . 2 . . . Robot Analysis 1 | . 1 . . . Prototype ID Bank 1 | . 1 . . . Branch Access Points 1 | . 1 . . . Emergency Access Points 1 | . 1 . . . Locate Traps 3 | . 3 . . . Registered Components 1 | . 1 . . . Zone Layout 1 | . 1 . . . Fabricator Hacks . | . . . . . Repair Station Hacks 4 | . 4 . . . Scan Component 2 | . 2 . . . Repair 2 | . 2 . . . Recycling Unit Hacks 2 | . 2 . . . Retrieve Components 2 | . 2 . . . Scanalyzer . | . . . . . Garrison Access Hacks . | . . . . . Unauthorized Hacks 2 | . 2 . . . Terminals 2 | . 2 . . . Assimilate 1 | . 1 . . . Botnet 1 | . 1 . . . Fabricators . | . . . . . Repair Stations . | . . . . . Recycling Units . | . . . . . Scanalyzers . | . . . . . Garrison Access . | . . . . . Data Cores Recovered . | . . . . . Used . | . . . . . Hacking Detections 6 | . 6 . . . Full Trace Events 1 | . 1 . . . Feedback Events . | . . . . . Feedback Blocked . | . . . . . Robot Schematics Acquired . | . . . . . Robots Built . | . . . . . Authchips . | . . . . . Time . | . . . . . Total Robot Build Rating . | . . . . . Part Schematics Acquired 2 | . 2 . . . Parts Built . | . . . . . Authchips . | . . . . . Time . | . . . . . Total Part Build Rating . | . . . . . Parts Repaired 2 | . 2 . . . Time 52 | . 52 . . . Parts Recycled . | . . . . . Recycled Matter . | . . . . . Retrieved Matter . | . . . . . Retrieved Components 19 | . 19 . . . Parts Scanalyzed . | . . . . . Part Schematics Acquired . | . . . . . Parts Damaged . | . . . . . Bothacking | -11 -10 -10 -10 -9 ------------ Run | Scr Mat Min Exi Min Used RIF Installer . | . . . . . Robots Hacked . | . . . . . Non-combat . | . . . . . Combat . | . . . . . Robot Hacks Applied . | . . . . . Relay Couplers Released . | . . . . . Fabnet Peak Effective % . | . . . . . Robots Rewired . | . . . . . Allies Hacked . | . . . . . Hacks Repelled . | . . . . . Allies | -11 -10 -10 -10 -9 -------- Run | Scr Mat Min Exi Min Total Allies 6 | . 1 5 . . Largest Group 6 | . 1 6 5 3 Highest-Rated Group 95 | . 10 95 87 42 Highest-Rated Ally 31 | . 10 31 31 16 Total Orders 2 | . . 2 . . STAY 1 | . . 1 . . FOLLOW 1 | . . 1 . . Ally Attacks 32 | . . 15 . 17 Total Damage 440 | . . 225 . 215 Kills 7 | . . 4 . 3 Allies Corrupted . | . . . . . Allies Melted . | . . . . . Intel | -11 -10 -10 -10 -9 ------- Run | Scr Mat Min Exi Min Robot Analysis Total 1 | . 1 . . . Derelict Logs Recovered 2 | . . 1 . 1 Drone Launches . | . . . . . Drone Recoveries . | . . . . . Exploration | -11 -10 -10 -10 -9 ------------- Run | Scr Mat Min Exi Min Turns Passed 6173 | 181 1730 2594 576 1092 Spaces Moved 2536 | 74 756 1039 241 426 Core 6 | 6 . . . . Treads 2243 | 68 469 1039 241 426 Legs . | . . . . . Wheels 287 | . 287 . . . Hover . | . . . . . Flight . | . . . . . Fastest Speed 50 | 50 145 240 240 240 Average Speed 219 | 154 180 240 240 240 Slowest Speed 240 | 160 240 240 240 240 Overloaded Moves . | . . . . . Propulsion Burnouts . | . . . . . Robots Hopped . | . . . . . Cave-ins Triggered . | . . . . . Exploration Rate (%) 66 | 5 98 99 59 72 Regions Visited 4 Branch Regions 3 Pre-discovered Areas 2 | . . . 1 1 Known Exits Taken 1 | . 1 . . . Unknown Exits Taken 3 | 1 . 1 1 . Scrap Searched 3 | . . 2 . 1 Spaces Dug . | . . . . . Terrain Destroyed 33 | . . . . 33 Melee . | . . . . . Projectile . | . . . . . AOE 33 | . . . . 33 Terrain Rammed . | . . . . . Walls Destroyed . | . . . . . Machines Disabled . | . . . . . Actions | -11 -10 -10 -10 -9 --------- Run | Scr Mat Min Exi Min Total 2931 | 110 1002 1124 240 455 Wait 217 | 9 143 64 . 1 Move 2532 | 73 755 1038 240 426 Hop . | . . . . . Pick Up 25 | 7 11 6 . 1 Fast Attach 15 | 6 9 . . . Attach 3 | 1 1 . . 1 Detach 2 | . 2 . . . Swap 8 | . 6 . . 2 Drop 9 | . 8 . . 1 Fire 120 | 14 67 16 . 23 Melee . | . . . . . Ram . | . . . . . Kick . | . . . . . Crush . | . . . . . Escape Stasis . | . . . . . Rewire . | . . . . . Trap . | . . . . . Miscellaneous . | . . . . . Route ------- -11/Scrapyard -10/Materials (discovered 5 exits: [*Mat x3] / *Min x2) -10/Mines (discovered 3 exits: [*Mat x2] / *Exi) -10/Exiles -9/Mines (discovered 2 exits: [*Mat x2]) History --------- Turn | Location | Event 12 | -11/Scrapyard | Discovered new exit (range 15) 182 | -11/Scrapyard | Entered Materials 301 | -10/Materials | Build established: Mutant 703 | -10/Materials | Discovered new exit (range 4) 707 | -10/Materials | Discovered new exit (range 16) 946 | -10/Materials | Identified exit to Mines 1256 | -10/Materials | Discovered new exit (range 16) 1583 | -10/Materials | Repaired Lgt. Armor Plating 1610 | -10/Materials | Repaired Lgt. Treads 1696 | -10/Materials | Discovered new exit (range 15) 1912 | -10/Materials | Entered Mines 1912 | -10/Mines | Accompanied by 1 ally 2084 | -10/Mines | Learned Materials emergency access door positions 2269 | -10/Mines | Discovered new exit (range 12) 2369 | -10/Mines | Discovered new exit (range 7) 2502 | -10/Mines | Assisted by bots powering up and referring to "LRC-V3" 2791 | -10/Mines | Build established: Commander-Mutant 3323 | -10/Mines | Build established: Mutant 4417 | -10/Mines | Deemed a non-threat by the Exiles lab entrance 4420 | -10/Mines | Discovered new exit (range 5) 4506 | -10/Mines | Entered Exiles 4506 | -10/Exiles | Accompanied by 5 allies 4536 | -10/Exiles | Led the pair of lost Derelicts to a safe place 4564 | -10/Exiles | Met 8R-AWN 4607 | -10/Exiles | Met EX-HEX 4698 | -10/Exiles | Met EX-DEC 4713 | -10/Exiles | Learned location of Zion (-6) 5061 | -10/Exiles | Discovered new exit (range 10) 5082 | -10/Exiles | Entered Mines 5082 | -9/Mines | Accompanied by 3 allies 5211 | -9/Mines | Received a Rocket Launcher from a helpful Derelict 5239 | -9/Mines | A weapon hastily lodged in a ceiling crevice suddenly fell to the ground 5569 | -9/Mines | Discovered new exit (range 15) 6021 | -9/Mines | Discovered new exit (range 4) 6137 | -9/Mines | Assembled infested the area 6142 | -9/Mines | Assisted by a Guerilla fighting off Assembled 6155 | -9/Mines | Core integrity fell below 50% 6169 | -9/Mines | Core integrity fell below 20% 6174 | -9/Mines | Destroyed by as-13121 with Assembled Rifle Last Messages --------------- 06161_ as-39236 destroyed. 06162_ as-05642 destroyed. 06162_ as-96190 destroyed. 06162_ as-07498 destroyed. 06162_ IX-UFR(h) destroyed. 06163_ Lgt. Treads destroyed. 06163_ as-16718 destroyed. 06163_ as-69161 destroyed. 06165_ as-30284 destroyed. 06167_ Lgt. Nuclear Core destroyed. 06167_ Lgt. Cannon destroyed. 06168_ The unstable cave ceiling collapses. 06168_ U-05 Engineer builds a Wall. 06168_ Lgt. Treads destroyed. 06169_ The unstable cave ceiling collapses. 06169_ Imp. Heat Sink destroyed. 06172_ D-53 Grenadier destroyed. 06172_ U-05 Engineer lays Concrete. 06173_ The unstable cave ceiling collapses. 06173_ U-05 Engineer builds a Wall. Map ----- +----------------------------------------------------+ | ?????????????????????????????????????????????????? | | ?????????????????????????????????????????????????? | | ?????????????????????????????????????????????????? | | ???????????????????????????????????#####?????????? | | ???????????????????????????????????? #???#####? | | ????????????????????????????????????# #### ## | | ????????????????????????????????????# ## # | | ?????????????????????????????????????# # | | ??????????????????????????????????????# # | | ???????????????????????????????????????# # | | ???????????????????????????????????????# # | | ?????????????????????????????###??????## # | | ????????????????????????????## ###??## # | | ????????????????????????????# ### # | | ????????????????????????????# # | | ?????????????????????????????# | | ???????????????????????????#### ## | | ??????????????????????????? ### #### | | ???????????????????????????# #?## ##?# | | ???????????????????????????# #??#### #?#% | | ??????????????????????######u##????## #?# # | | ???????????????????#### # ######## #?# ## | | ?????????????????### # #### ### | | ?????????????????# # ### #?# | | ????????? # ## ## ### ##? | | ????????? a= @ | ## #### #? | | ????????? a = # ## ##?# #? | | ????????? % = # ####??# | #? | | ?????????? %% # #?????## ##? | | ?????????? # d##!*#??????## #?? | | ???????????# ####### ##%!#???????# ##? | | ????????????# # ??????# # !##?????## #? | | ???????????? #?##???????# ##???## ## | | ?????????????# ????????????## % ##?## | | ?????????????##??????????????## % ### #### | | ??????????????????????????????# % ## #??? | | ?????????????????????????????## ### #??? | | ????????????????????????????## #?## ##??? | | ????????????????????????????# #??### ##???? | | ????????????????????????????# #????# #????? | | ????????????????????????????## #????# #????? | | ?????????????????????????????### #????# #????? | | ???????????????????????????????## #????# #????? | | ????????????????????????????????## ##????# #????? | | ?????????????????????????????????# #???### #????? | | ?????????????????????????????????# #???# #????? | | ????????????????????????####?????# ##### ###????? | | ???????????????????????## ####### # ## #??????? | | ???????????????????????# ## < ##?????? | | ???????????????????????# #?????? | +----------------------------------------------------+ Best States ------------- Heat Dissipation 39 Energy Generation 14 Energy Capacity 250 Matter Stores 300 Matter Capacity 300 Sight Range 16 Terrain Scan Density 10 Armor Coverage 150 Evasion (%) 40 Recoil Reduction 2 Item Schematics ----------------- Hcp. Storage Unit | -10/Materials | Hacked Huge Storage Unit | -10/Materials | Hacked Robot Schematics ------------------ None Fabricated ------------ Nothing Alien Tech Used ----------------- None Achievements -------------- None Challenges ------------ None Game ------ Seed SegregatorSigixRedirector Manual? 0 Play Time 00:17:05 Cumulative 55.0 hours Start 2023.01.04 @ 01:51:34 End 2023.01.04 @ 15:41:25 Sessions 3 Manual Loads 0 Difficulty Rogue Special Mode None Game No. 28 Rogue 28 Adventurer 0 Explorer 0 Win Type - Total 5 Types 2/0/0/0/0/0/2/0/1 Lore% 43 Gallery% 52 Achievement% 57 Wizard Run 0 Options --------- ASCII 0 Keyboard 0 Movement Mouse Keybinds 0 Fullscreen 1 Font 16/Terminus Map View 76x50 Tactical HUD 1 Map Filters NONE Filters NONE Steam 0 RUN: 696dcb5f-54e9-4f65-a371-9c31c8a0e940